[Event "Titled Tuesday Blitz December 13 Late 2022"]
[White "Milikow, Yoav"]
[Black "Kupervaser, Erez"]
[WhiteFideId "2822237"]
[BlackFideId "2814587"]
[WhiteElo "2416"]
[BlackElo "2251"]
[Result "1-0"]
[Round "04"]
[TimeControl "180+1"]
[Date "2022.12.14"]
[WhiteClock "0:00:15"]
[BlackClock "0:00:10"]

1. d4 {[%clk 0:03:00]}  d5 {[%clk 0:02:59]} 2. c4 {[%clk 0:03:01]}  c6 {[%clk 0:02:59]} 3. Nf3 {[%clk 0:03:01]}  Nf6 {[%clk 0:03:00]} 4. g3 {[%clk 0:03:01]}  dxc4 {[%clk 0:02:53]} 5. Bg2 {[%clk 0:03:01]}  g6 {[%clk 0:02:53]} 6. O-O {[%clk 0:03:02]}  Bg7 {[%clk 0:02:53]} 7. Na3 {[%clk 0:02:51]}  O-O {[%clk 0:02:34]} 8. Nxc4 {[%clk 0:02:48]}  Be6 {[%clk 0:02:33]} 9. Nce5 {[%clk 0:02:47]}  Bd5 {[%clk 0:02:33]} 10. Qc2 {[%clk 0:02:40]}  Be4 {[%clk 0:02:31]} 11. Qb3 {[%clk 0:02:39]}  Qc8 {[%clk 0:02:24]} 12. Bd2 {[%clk 0:02:35]}  Nbd7 {[%clk 0:02:22]} 13. Qa3 {[%clk 0:02:34]}  Re8 {[%clk 0:02:17]} 14. Rac1 {[%clk 0:02:22]}  Nxe5 {[%clk 0:02:02]} 15. dxe5 {[%clk 0:02:21]}  Nd5 {[%clk 0:02:02]} 16. Qa4 {[%clk 0:02:08]}  Bxf3 {[%clk 0:01:51]} 17. Bxf3 {[%clk 0:02:09]}  Qe6 {[%clk 0:01:51]} 18. Qb3 {[%clk 0:02:04]}  Rab8 {[%clk 0:01:23]} 19. Bxd5 {[%clk 0:01:49]}  Qxd5 {[%clk 0:01:21]} 20. Qxd5 {[%clk 0:01:48]}  cxd5 {[%clk 0:01:22]} 21. f4 {[%clk 0:01:41]}  Rbc8 {[%clk 0:01:18]} 22. Be3 {[%clk 0:01:41]}  b6 {[%clk 0:01:15]} 23. Rfd1 {[%clk 0:01:41]}  e6 {[%clk 0:01:15]} 24. Bd4 {[%clk 0:01:40]}  Bf8 {[%clk 0:01:14]} 25. Kf2 {[%clk 0:01:40]}  Bc5 {[%clk 0:01:05]} 26. Ke3 {[%clk 0:01:41]}  Kf8 {[%clk 0:01:00]} 27. Rc3 {[%clk 0:01:32]}  Bb4 {[%clk 0:00:57]} 28. Rb3 {[%clk 0:01:29]}  Bc5 {[%clk 0:00:51]} 29. Rd2 {[%clk 0:01:22]}  Ke7 {[%clk 0:00:49]} 30. Kd3 {[%clk 0:01:22]}  Kd7 {[%clk 0:00:48]} 31. e3 {[%clk 0:01:21]}  Be7 {[%clk 0:00:47]} 32. g4 {[%clk 0:01:19]}  Rc4 {[%clk 0:00:47]} 33. Rc3 {[%clk 0:01:14]}  Rec8 {[%clk 0:00:46]} 34. Rg2 {[%clk 0:01:13]}  Rxc3+ {[%clk 0:00:38]} 35. Bxc3 {[%clk 0:01:08]}  b5 {[%clk 0:00:38]} 36. Bd4 {[%clk 0:01:06]}  a5 {[%clk 0:00:37]} 37. Bc3 {[%clk 0:00:55]}  b4 {[%clk 0:00:35]} 38. Bd2 {[%clk 0:00:55]}  a4 {[%clk 0:00:33]} 39. b3 {[%clk 0:00:54]}  axb3 {[%clk 0:00:26]} 40. axb3 {[%clk 0:00:55]}  Kc6 {[%clk 0:00:25]} 41. Rg1 {[%clk 0:00:54]}  Kb5 {[%clk 0:00:25]} 42. Ra1 {[%clk 0:00:54]}  Bc5 {[%clk 0:00:18]} 43. h4 {[%clk 0:00:52]}  Rd8 {[%clk 0:00:18]} 44. h5 {[%clk 0:00:50]}  gxh5 {[%clk 0:00:18]} 45. g5 {[%clk 0:00:48]}  d4 {[%clk 0:00:16]} 46. e4 {[%clk 0:00:48]}  Rd7 {[%clk 0:00:17]} 47. Rh1 {[%clk 0:00:40]}  Ra7 {[%clk 0:00:17]} 48. Rxh5 {[%clk 0:00:39]}  Ra3 {[%clk 0:00:17]} 49. Rxh7 {[%clk 0:00:37]}  Rxb3+ {[%clk 0:00:17]} 50. Kc2 {[%clk 0:00:36]}  Rf3 {[%clk 0:00:17]} 51. Rxf7 {[%clk 0:00:27]}  Kc4 {[%clk 0:00:17]} 52. Rc7 {[%clk 0:00:23]}  b3+ {[%clk 0:00:15]} 53. Kd1 {[%clk 0:00:17]}  Rf2 {[%clk 0:00:11]} 54. Bc1 {[%clk 0:00:09]}  Kd3 {[%clk 0:00:10]} 55. Ke1 {[%clk 0:00:09]}  Rc2 {[%clk 0:00:08]} 56. Kd1 {[%clk 0:00:08]}  Kc4 {[%clk 0:00:05]} 57. Ba3 {[%clk 0:00:06]}  Kd3 {[%clk 0:00:01]} 58. Rxc5 {[%clk 0:00:06]}  Rg2 {[%clk 0:00:02]} 59. Kc1 {[%clk 0:00:06]}  Rg1+ {[%clk 0:00:02]} 60. Kb2 {[%clk 0:00:06]}  Rg2+ {[%clk 0:00:03]} 61. Kxb3 {[%clk 0:00:07]}  Kxe4 {[%clk 0:00:03]} 62. Bb2 {[%clk 0:00:07]}  Kxf4 {[%clk 0:00:03]} 63. Bxd4 {[%clk 0:00:08]}  Rxg5 {[%clk 0:00:04]} 64. Kc4 {[%clk 0:00:08]}  Ke4 {[%clk 0:00:05]} 65. Bc3 {[%clk 0:00:09]}  Rg2 {[%clk 0:00:05]} 66. Rb5 {[%clk 0:00:09]}  Kf5 {[%clk 0:00:05]} 67. Rb2 {[%clk 0:00:10]}  Rg4+ {[%clk 0:00:06]} 68. Kd3 {[%clk 0:00:10]}  Re4 {[%clk 0:00:07]} 69. Rf2+ {[%clk 0:00:10]}  Rf4 {[%clk 0:00:08]} 70. Rxf4+ {[%clk 0:00:10]}  Kxf4 {[%clk 0:00:09]} 71. Kd4 {[%clk 0:00:11]}  Kf5 {[%clk 0:00:10]} 72. Kc5 {[%clk 0:00:12]}  Ke4 {[%clk 0:00:10]} 73. Kd6 {[%clk 0:00:13]}  Kf5 {[%clk 0:00:10]} 74. Ba1 {[%clk 0:00:14]}  Kg6 {[%clk 0:00:10]} 75. Kxe6 {[%clk 0:00:15]} 1-0


[Site "https://www.chess.com"]

[Event "Titled Tuesday Blitz December 13 Late 2022"]
[White "Nasuta, Grzegorz"]
[Black "Grigoriants, Sergey"]
[WhiteFideId "1141686"]
[BlackFideId "4130804"]
[WhiteElo "2441"]
[BlackElo "2502"]
[Result "1-0"]
[Round "04"]
[TimeControl "180+1"]
[Date "2022.12.13"]
[WhiteClock "0:00:46"]
[BlackClock "0:00:09"]

1. e4 {[%clk 0:03:00]}  c5 {[%clk 0:02:58]} 2. Nf3 {[%clk 0:03:01]}  e6 {[%clk 0:02:57]} 3. d4 {[%clk 0:03:01]}  cxd4 {[%clk 0:02:57]} 4. Nxd4 {[%clk 0:03:02]}  Nc6 {[%clk 0:02:57]} 5. Nc3 {[%clk 0:03:02]}  a6 {[%clk 0:02:58]} 6. a3 {[%clk 0:02:58]}  d6 {[%clk 0:02:50]} 7. g4 {[%clk 0:02:54]}  Nge7 {[%clk 0:02:36]} 8. Be3 {[%clk 0:02:54]}  b5 {[%clk 0:02:36]} 9. g5 {[%clk 0:02:50]}  Bb7 {[%clk 0:02:36]} 10. Rg1 {[%clk 0:02:50]}  Rc8 {[%clk 0:02:30]} 11. Qd2 {[%clk 0:02:38]}  Nxd4 {[%clk 0:02:23]} 12. Bxd4 {[%clk 0:02:35]}  Nc6 {[%clk 0:02:24]} 13. Be3 {[%clk 0:02:35]}  Ne5 {[%clk 0:02:24]} 14. Rg3 {[%clk 0:02:35]}  Be7 {[%clk 0:02:21]} 15. O-O-O {[%clk 0:02:28]}  O-O {[%clk 0:02:17]} 16. f4 {[%clk 0:02:23]}  Nc4 {[%clk 0:02:17]} 17. Bxc4 {[%clk 0:02:22]}  Rxc4 {[%clk 0:02:18]} 18. f5 {[%clk 0:02:22]}  Re8 {[%clk 0:02:05]} 19. fxe6 {[%clk 0:01:53]}  fxe6 {[%clk 0:02:04]} 20. g6 {[%clk 0:01:53]}  Bf6 {[%clk 0:01:48]} 21. gxh7+ {[%clk 0:01:53]}  Kh8 {[%clk 0:01:43]} 22. Bg5 {[%clk 0:01:45]}  Bxe4 {[%clk 0:01:03]} 23. Nxe4 {[%clk 0:01:18]}  Rxe4 {[%clk 0:01:02]} 24. Bxf6 {[%clk 0:01:18]}  Qxf6 {[%clk 0:01:02]} 25. Qxd6 {[%clk 0:01:19]}  Rh4 {[%clk 0:00:49]} 26. Qxa6 {[%clk 0:01:05]}  Rxh2 {[%clk 0:00:47]} 27. Rc3 {[%clk 0:01:05]}  b4 {[%clk 0:00:35]} 28. axb4 {[%clk 0:01:04]}  Qf4+ {[%clk 0:00:36]} 29. Kb1 {[%clk 0:01:02]}  Qxb4 {[%clk 0:00:36]} 30. Rc8 {[%clk 0:00:57]}  Rxc8 {[%clk 0:00:25]} 31. Qxc8+ {[%clk 0:00:57]}  Kxh7 {[%clk 0:00:26]} 32. Qxe6 {[%clk 0:00:57]}  Qc5 {[%clk 0:00:18]} 33. Qe4+ {[%clk 0:00:56]}  Kg8 {[%clk 0:00:08]} 34. Rd8+ {[%clk 0:00:45]}  Kf7 {[%clk 0:00:09]} 35. Qf4+ {[%clk 0:00:46]}  Ke7 {[%clk 0:00:09]} 36. Qf8+ {[%clk 0:00:46]} 1-0


[Site "https://www.chess.com"]

[Event "Titled Tuesday Blitz December 13 Late 2022"]
[White "Pace, Christopher"]
[Black "Fernandez De La Vara, Arnaldo"]
[WhiteFideId "2610167"]
[BlackFideId "3518388"]
[WhiteElo "2300"]
[BlackElo "2387"]
[Result "0-1"]
[Round "04"]
[TimeControl "180+1"]
[Date "2022.12.14"]
[WhiteClock "0:00:01"]
[BlackClock "0:02:27"]

1. e4 {[%clk 0:02:59]}  c5 {[%clk 0:03:00]} 2. Nf3 {[%clk 0:02:57]}  e6 {[%clk 0:03:01]} 3. d4 {[%clk 0:02:33]}  cxd4 {[%clk 0:03:02]} 4. Nxd4 {[%clk 0:02:34]}  a6 {[%clk 0:03:02]} 5. Nc3 {[%clk 0:02:26]}  Qc7 {[%clk 0:03:02]} 6. Be2 {[%clk 0:02:04]}  Nf6 {[%clk 0:03:01]} 7. Be3 {[%clk 0:01:55]}  d6 {[%clk 0:03:01]} 8. O-O {[%clk 0:01:50]}  Nbd7 {[%clk 0:02:59]} 9. f4 {[%clk 0:01:44]}  b5 {[%clk 0:02:58]} 10. Bf3 {[%clk 0:01:21]}  Bb7 {[%clk 0:02:57]} 11. f5 {[%clk 0:01:02]}  e5 {[%clk 0:02:53]} 12. Nde2 {[%clk 0:00:56]}  Nb6 {[%clk 0:02:47]} 13. a4 {[%clk 0:00:47]}  b4 {[%clk 0:02:42]} 14. Na2 {[%clk 0:00:34]}  d5 {[%clk 0:02:32]} 15. exd5 {[%clk 0:00:30]}  e4 {[%clk 0:02:32]} 16. Nd4 {[%clk 0:00:08]}  exf3 {[%clk 0:02:30]} 17. Nc6 {[%clk 0:00:01]}  Nbxd5 {[%clk 0:02:27]} 0-1


[Site "https://www.chess.com"]

[Event "Titled Tuesday Blitz December 13 Late 2022"]
[White "Petrovic, Aleksa"]
[Black "Osmonbekov, Talaibek"]
[WhiteFideId "967629"]
[BlackFideId "2017253"]
[WhiteElo "2230"]
[BlackElo "2135"]
[Result "1/2-1/2"]
[Round "04"]
[TimeControl "180+1"]
[Date "2022.12.14"]
[WhiteClock "0:00:11"]
[BlackClock "0:00:17"]

1. d4 {[%clk 0:03:00]}  e6 {[%clk 0:02:59]} 2. c4 {[%clk 0:02:59]}  f5 {[%clk 0:03:00]} 3. Nf3 {[%clk 0:02:58]}  Nf6 {[%clk 0:03:00]} 4. g3 {[%clk 0:02:58]}  Be7 {[%clk 0:03:01]} 5. Bg2 {[%clk 0:02:58]}  O-O {[%clk 0:03:01]} 6. O-O {[%clk 0:02:57]}  d6 {[%clk 0:03:02]} 7. Nc3 {[%clk 0:02:54]}  a5 {[%clk 0:03:03]} 8. Re1 {[%clk 0:02:50]}  Ne4 {[%clk 0:02:52]} 9. Qc2 {[%clk 0:02:44]}  Nxc3 {[%clk 0:02:51]} 10. bxc3 {[%clk 0:02:45]}  Nc6 {[%clk 0:02:47]} 11. d5 {[%clk 0:02:40]}  Ne5 {[%clk 0:02:45]} 12. Nd4 {[%clk 0:02:22]}  Nxc4 {[%clk 0:02:04]} 13. Nxe6 {[%clk 0:02:20]}  Bxe6 {[%clk 0:02:03]} 14. dxe6 {[%clk 0:02:21]}  d5 {[%clk 0:01:46]} 15. Rd1 {[%clk 0:02:12]}  c6 {[%clk 0:01:45]} 16. e4 {[%clk 0:02:04]}  fxe4 {[%clk 0:01:25]} 17. Bxe4 {[%clk 0:02:00]}  Bc5 {[%clk 0:01:23]} 18. Bxh7+ {[%clk 0:01:57]}  Kh8 {[%clk 0:01:22]} 19. Bf4 {[%clk 0:01:48]}  Rxf4 {[%clk 0:01:12]} 20. gxf4 {[%clk 0:01:45]}  Qh4 {[%clk 0:01:12]} 21. Bd3 {[%clk 0:01:02]}  Qg4+ {[%clk 0:01:02]} 22. Kh1 {[%clk 0:00:51]}  Qf3+ {[%clk 0:01:00]} 23. Kg1 {[%clk 0:00:51]}  Rf8 {[%clk 0:00:57]} 24. Bxc4 {[%clk 0:00:44]}  Rxf4 {[%clk 0:00:52]} 25. e7 {[%clk 0:00:13]}  Bxf2+ {[%clk 0:00:42]} 26. Kf1 {[%clk 0:00:13]}  Be3+ {[%clk 0:00:40]} 27. Ke1 {[%clk 0:00:12]}  Bf2+ {[%clk 0:00:29]} 28. Kf1 {[%clk 0:00:12]}  Bg3+ {[%clk 0:00:17]} 29. Kg1 {[%clk 0:00:11]}  Bf2+ {[%clk 0:00:17]} 30. Kf1 {[%clk 0:00:11]} 1/2-1/2


[Site "https://www.chess.com"]

[Event "Titled Tuesday Blitz December 13 Late 2022"]
[White "Pichot, Alan"]
[Black "Toncheva, Nadya"]
[WhiteFideId "110973"]
[BlackFideId "2924056"]
[WhiteElo "2561"]
[BlackElo "2101"]
[Result "1-0"]
[Round "04"]
[TimeControl "180+1"]
[Date "2022.12.13"]
[WhiteClock "0:00:35"]
[BlackClock "0:00:10"]

1. d4 {[%clk 0:02:49]}  d5 {[%clk 0:02:59]} 2. Nf3 {[%clk 0:02:48]}  Nf6 {[%clk 0:02:59]} 3. c4 {[%clk 0:02:49]}  dxc4 {[%clk 0:03:00]} 4. e3 {[%clk 0:02:47]}  Bg4 {[%clk 0:03:00]} 5. h3 {[%clk 0:02:47]}  Bh5 {[%clk 0:03:00]} 6. Bxc4 {[%clk 0:02:47]}  e6 {[%clk 0:03:01]} 7. O-O {[%clk 0:02:47]}  a6 {[%clk 0:03:01]} 8. Nc3 {[%clk 0:02:48]}  Nc6 {[%clk 0:03:00]} 9. b3 {[%clk 0:02:42]}  Bd6 {[%clk 0:03:00]} 10. Bb2 {[%clk 0:02:42]}  O-O {[%clk 0:03:01]} 11. Be2 {[%clk 0:02:41]}  Re8 {[%clk 0:03:01]} 12. Rc1 {[%clk 0:02:39]}  Qe7 {[%clk 0:02:59]} 13. Nd2 {[%clk 0:02:36]}  Bxe2 {[%clk 0:02:50]} 14. Qxe2 {[%clk 0:02:37]}  Rad8 {[%clk 0:02:48]} 15. Nce4 {[%clk 0:02:36]}  Nxe4 {[%clk 0:02:45]} 16. Nxe4 {[%clk 0:02:36]}  Ba3 {[%clk 0:02:38]} 17. Bxa3 {[%clk 0:02:35]}  Qxa3 {[%clk 0:02:39]} 18. Nc5 {[%clk 0:02:36]}  Na5 {[%clk 0:02:00]} 19. Nd3 {[%clk 0:02:36]}  Qd6 {[%clk 0:01:57]} 20. Rc2 {[%clk 0:02:28]}  Nc6 {[%clk 0:01:54]} 21. Rfc1 {[%clk 0:02:26]}  e5 {[%clk 0:01:33]} 22. Nxe5 {[%clk 0:02:10]}  Nxe5 {[%clk 0:01:33]} 23. dxe5 {[%clk 0:02:10]}  Rxe5 {[%clk 0:01:27]} 24. Rxc7 {[%clk 0:02:10]}  Rd5 {[%clk 0:01:26]} 25. Rxb7 {[%clk 0:02:04]}  Rd2 {[%clk 0:01:18]} 26. Qf3 {[%clk 0:02:04]}  Qe6 {[%clk 0:01:00]} 27. Rcc7 {[%clk 0:01:49]}  Rf8 {[%clk 0:00:49]} 28. a4 {[%clk 0:01:46]}  Rdd8 {[%clk 0:00:40]} 29. b4 {[%clk 0:01:42]}  Rc8 {[%clk 0:00:37]} 30. b5 {[%clk 0:01:36]}  axb5 {[%clk 0:00:36]} 31. axb5 {[%clk 0:01:36]}  Rxc7 {[%clk 0:00:36]} 32. Rxc7 {[%clk 0:01:35]}  Qb3 {[%clk 0:00:29]} 33. Qc6 {[%clk 0:01:30]}  h6 {[%clk 0:00:24]} 34. Rc8 {[%clk 0:01:22]}  Rxc8 {[%clk 0:00:20]} 35. Qxc8+ {[%clk 0:01:21]}  Kh7 {[%clk 0:00:21]} 36. Qc6 {[%clk 0:01:20]}  Qb1+ {[%clk 0:00:19]} 37. Kh2 {[%clk 0:00:58]}  Qf5 {[%clk 0:00:19]} 38. f4 {[%clk 0:00:50]}  h5 {[%clk 0:00:18]} 39. b6 {[%clk 0:00:49]}  h4 {[%clk 0:00:16]} 40. b7 {[%clk 0:00:49]}  Qb1 {[%clk 0:00:17]} 41. Qc8 {[%clk 0:00:41]}  Qe1 {[%clk 0:00:15]} 42. Qf5+ {[%clk 0:00:41]}  g6 {[%clk 0:00:15]} 43. Qxf7+ {[%clk 0:00:34]}  Kh6 {[%clk 0:00:15]} 44. Qf8+ {[%clk 0:00:34]}  Kh7 {[%clk 0:00:15]} 45. Qe7+ {[%clk 0:00:34]}  Kh6 {[%clk 0:00:15]} 46. Qg5+ {[%clk 0:00:34]}  Kh7 {[%clk 0:00:10]} 47. b8=Q {[%clk 0:00:35]} 1-0


[Site "https://www.chess.com"]

[Event "Titled Tuesday Blitz December 13 Late 2022"]
[White "Radovanovic, Dusan"]
[Black "Hoffmann, Asa"]
[WhiteFideId "926868"]
[BlackFideId "2001470"]
[WhiteElo "2337"]
[BlackElo "2117"]
[Result "1-0"]
[Round "04"]
[TimeControl "180+1"]
[Date "2022.12.14"]
[WhiteClock "0:00:46"]
[BlackClock "0:00:19"]

1. e4 {[%clk 0:03:00]}  d6 {[%clk 0:02:55]} 2. d4 {[%clk 0:02:59]}  Nf6 {[%clk 0:02:54]} 3. Nc3 {[%clk 0:03:00]}  c6 {[%clk 0:02:54]} 4. f4 {[%clk 0:02:59]}  Qa5 {[%clk 0:02:53]} 5. Bd3 {[%clk 0:02:58]}  e5 {[%clk 0:02:52]} 6. Nf3 {[%clk 0:02:58]}  exd4 {[%clk 0:02:51]} 7. Nxd4 {[%clk 0:02:57]}  Qb6 {[%clk 0:02:50]} 8. Nf3 {[%clk 0:02:48]}  Be7 {[%clk 0:02:46]} 9. Qe2 {[%clk 0:02:35]}  O-O {[%clk 0:02:45]} 10. a3 {[%clk 0:02:30]}  Bg4 {[%clk 0:02:40]} 11. Qf2 {[%clk 0:02:14]}  Qxf2+ {[%clk 0:02:37]} 12. Kxf2 {[%clk 0:02:15]}  Bxf3 {[%clk 0:02:32]} 13. Kxf3 {[%clk 0:02:14]}  Nbd7 {[%clk 0:02:32]} 14. b4 {[%clk 0:02:10]}  a5 {[%clk 0:02:30]} 15. Bd2 {[%clk 0:02:02]}  axb4 {[%clk 0:02:24]} 16. axb4 {[%clk 0:02:03]}  Nb6 {[%clk 0:02:24]} 17. g4 {[%clk 0:02:01]}  d5 {[%clk 0:02:22]} 18. e5 {[%clk 0:01:51]}  Nfd7 {[%clk 0:02:19]} 19. b5 {[%clk 0:01:51]}  Nc5 {[%clk 0:02:07]} 20. bxc6 {[%clk 0:01:47]}  bxc6 {[%clk 0:02:03]} 21. Rhb1 {[%clk 0:01:39]}  Rxa1 {[%clk 0:01:59]} 22. Rxa1 {[%clk 0:01:39]}  Nxd3 {[%clk 0:01:58]} 23. cxd3 {[%clk 0:01:40]}  Ra8 {[%clk 0:01:51]} 24. Rb1 {[%clk 0:01:36]}  Bc5 {[%clk 0:01:33]} 25. Rb3 {[%clk 0:01:20]}  Kf8 {[%clk 0:01:20]} 26. Ne2 {[%clk 0:01:15]}  Ra6 {[%clk 0:01:14]} 27. Bb4 {[%clk 0:01:09]}  Nd7 {[%clk 0:01:08]} 28. d4 {[%clk 0:01:04]}  Bxb4 {[%clk 0:01:06]} 29. Rxb4 {[%clk 0:01:04]}  Rb6 {[%clk 0:01:06]} 30. Rxb6 {[%clk 0:01:02]}  Nxb6 {[%clk 0:01:06]} 31. f5 {[%clk 0:01:03]}  Ke7 {[%clk 0:01:02]} 32. h4 {[%clk 0:01:02]}  Nd7 {[%clk 0:01:01]} 33. Nc3 {[%clk 0:01:01]}  h6 {[%clk 0:00:58]} 34. Na4 {[%clk 0:00:59]}  g6 {[%clk 0:00:55]} 35. Kf4 {[%clk 0:00:55]}  Nf8 {[%clk 0:00:46]} 36. Nc5 {[%clk 0:00:52]}  Nd7 {[%clk 0:00:38]} 37. Nxd7 {[%clk 0:00:49]}  Kxd7 {[%clk 0:00:38]} 38. e6+ {[%clk 0:00:49]}  fxe6 {[%clk 0:00:32]} 39. fxg6 {[%clk 0:00:50]}  Ke7 {[%clk 0:00:31]} 40. Ke5 {[%clk 0:00:50]}  Kf8 {[%clk 0:00:21]} 41. Kxe6 {[%clk 0:00:47]}  Kg7 {[%clk 0:00:19]} 42. h5 {[%clk 0:00:46]} 1-0


[Site "https://www.chess.com"]

[Event "Titled Tuesday Blitz December 13 Late 2022"]
[White "Remizov, Yaroslav"]
[Black "Firouzja, Alireza"]
[WhiteFideId "34134015"]
[BlackFideId "12573981"]
[WhiteElo "2415"]
[BlackElo "2904"]
[Result "1/2-1/2"]
[Round "04"]
[TimeControl "180+1"]
[Date "2022.12.13"]
[WhiteClock "0:00:14"]
[BlackClock "0:00:11"]

1. e4 {[%clk 0:03:00]}  e6 {[%clk 0:03:00]} 2. d4 {[%clk 0:03:00]}  d5 {[%clk 0:03:00]} 3. Nc3 {[%clk 0:03:00]}  Bb4 {[%clk 0:03:00]} 4. e5 {[%clk 0:03:01]}  c5 {[%clk 0:03:00]} 5. a3 {[%clk 0:03:01]}  Bxc3+ {[%clk 0:03:00]} 6. bxc3 {[%clk 0:03:02]}  Ne7 {[%clk 0:03:00]} 7. Qg4 {[%clk 0:03:03]}  O-O {[%clk 0:03:01]} 8. Bd3 {[%clk 0:03:02]}  Nbc6 {[%clk 0:02:59]} 9. Nf3 {[%clk 0:03:01]}  Nf5 {[%clk 0:02:53]} 10. O-O {[%clk 0:02:57]}  Qa5 {[%clk 0:02:49]} 11. a4 {[%clk 0:02:34]}  c4 {[%clk 0:02:38]} 12. Bxf5 {[%clk 0:02:34]}  exf5 {[%clk 0:02:39]} 13. Qg3 {[%clk 0:02:03]}  f4 {[%clk 0:02:22]} 14. Bxf4 {[%clk 0:01:59]}  Bf5 {[%clk 0:02:22]} 15. Bd2 {[%clk 0:01:54]}  Bxc2 {[%clk 0:02:21]} 16. h4 {[%clk 0:01:48]}  f6 {[%clk 0:02:21]} 17. Rfe1 {[%clk 0:01:41]}  Be4 {[%clk 0:02:20]} 18. h5 {[%clk 0:01:30]}  fxe5 {[%clk 0:02:05]} 19. Nxe5 {[%clk 0:01:29]}  Nxd4 {[%clk 0:02:05]} 20. Nxc4 {[%clk 0:01:04]}  dxc4 {[%clk 0:01:37]} 21. Rxe4 {[%clk 0:01:04]}  Nf5 {[%clk 0:01:38]} 22. Qe5 {[%clk 0:01:04]}  Qxe5 {[%clk 0:01:33]} 23. Rxe5 {[%clk 0:01:05]}  Rad8 {[%clk 0:01:34]} 24. Be1 {[%clk 0:00:54]}  h6 {[%clk 0:01:20]} 25. a5 {[%clk 0:00:48]}  Rd7 {[%clk 0:01:03]} 26. f3 {[%clk 0:00:48]}  Re7 {[%clk 0:00:55]} 27. Rxe7 {[%clk 0:00:41]}  Nxe7 {[%clk 0:00:56]} 28. Rb1 {[%clk 0:00:41]}  Nd5 {[%clk 0:00:40]} 29. Rxb7 {[%clk 0:00:40]}  Re8 {[%clk 0:00:41]} 30. Bf2 {[%clk 0:00:26]}  Nxc3 {[%clk 0:00:41]} 31. Rxa7 {[%clk 0:00:25]}  Rc8 {[%clk 0:00:24]} 32. Kf1 {[%clk 0:00:22]}  Nd5 {[%clk 0:00:19]} 33. Rd7 {[%clk 0:00:21]}  Nf6 {[%clk 0:00:17]} 34. Rd1 {[%clk 0:00:15]}  c3 {[%clk 0:00:17]} 35. Ke2 {[%clk 0:00:13]}  Nxh5 {[%clk 0:00:11]} 36. Be3 {[%clk 0:00:13]}  Ng3+ {[%clk 0:00:10]} 37. Kd3 {[%clk 0:00:12]}  c2 {[%clk 0:00:08]} 38. Rc1 {[%clk 0:00:11]}  Ra8 {[%clk 0:00:08]} 39. Bb6 {[%clk 0:00:11]}  Nh5 {[%clk 0:00:05]} 40. Rxc2 {[%clk 0:00:11]}  Nf4+ {[%clk 0:00:05]} 41. Kc4 {[%clk 0:00:11]}  Rc8+ {[%clk 0:00:03]} 42. Kb3 {[%clk 0:00:12]}  Ra8 {[%clk 0:00:04]} 43. Ka4 {[%clk 0:00:12]}  Nd5 {[%clk 0:00:02]} 44. Kb5 {[%clk 0:00:13]}  Kf7 {[%clk 0:00:02]} 45. Rc5 {[%clk 0:00:11]}  Ke6 {[%clk 0:00:02]} 46. Rc1 {[%clk 0:00:07]}  Kd6 {[%clk 0:00:02]} 47. Rd1 {[%clk 0:00:07]}  Rb8 {[%clk 0:00:02]} 48. Rd2 {[%clk 0:00:06]}  g6 {[%clk 0:00:01]} 49. Rd3 {[%clk 0:00:05]}  h5 {[%clk 0:00:02]} 50. Rd2 {[%clk 0:00:06]}  g5 {[%clk 0:00:02]} 51. Rd1 {[%clk 0:00:05]}  h4 {[%clk 0:00:03]} 52. Rd2 {[%clk 0:00:06]}  Ke6 {[%clk 0:00:03]} 53. Kc6 {[%clk 0:00:06]}  Rc8+ {[%clk 0:00:03]} 54. Kb7 {[%clk 0:00:06]}  Rh8 {[%clk 0:00:03]} 55. a6 {[%clk 0:00:06]}  Rh7+ {[%clk 0:00:03]} 56. Kc6 {[%clk 0:00:07]}  Nb4+ {[%clk 0:00:04]} 57. Kb5 {[%clk 0:00:07]}  Nxa6 {[%clk 0:00:05]} 58. Kxa6 {[%clk 0:00:07]}  h3 {[%clk 0:00:06]} 59. gxh3 {[%clk 0:00:05]}  Rxh3 {[%clk 0:00:07]} 60. Rf2 {[%clk 0:00:05]}  Kf5 {[%clk 0:00:07]} 61. Bc7 {[%clk 0:00:05]}  g4 {[%clk 0:00:07]} 62. fxg4+ {[%clk 0:00:05]}  Kxg4 {[%clk 0:00:08]} 63. Rf7 {[%clk 0:00:05]}  Rf3 {[%clk 0:00:07]} 64. Re7 {[%clk 0:00:05]}  Kg5 {[%clk 0:00:07]} 65. Kb5 {[%clk 0:00:05]}  Kf6 {[%clk 0:00:07]} 66. Re1 {[%clk 0:00:06]}  Rf5+ {[%clk 0:00:07]} 67. Kc6 {[%clk 0:00:06]}  Kf7 {[%clk 0:00:08]} 68. Bd6 {[%clk 0:00:06]}  Rf6 {[%clk 0:00:08]} 69. Kd7 {[%clk 0:00:07]}  Rf5 {[%clk 0:00:07]} 70. Re8 {[%clk 0:00:07]}  Kg7 {[%clk 0:00:07]} 71. Ke6 {[%clk 0:00:06]}  Rf6+ {[%clk 0:00:07]} 72. Kd5 {[%clk 0:00:06]}  Rf1 {[%clk 0:00:07]} 73. Be5+ {[%clk 0:00:06]}  Kf7 {[%clk 0:00:07]} 74. Rh8 {[%clk 0:00:07]}  Rf5 {[%clk 0:00:06]} 75. Ke4 {[%clk 0:00:07]}  Rf1 {[%clk 0:00:06]} 76. Rh6 {[%clk 0:00:06]}  Rf2 {[%clk 0:00:06]} 77. Bf4 {[%clk 0:00:07]}  Ke8 {[%clk 0:00:04]} 78. Ke5 {[%clk 0:00:06]}  Re2+ {[%clk 0:00:03]} 79. Kf6 {[%clk 0:00:05]}  Kd7 {[%clk 0:00:04]} 80. Rh7+ {[%clk 0:00:05]}  Kc6 {[%clk 0:00:04]} 81. Be5 {[%clk 0:00:05]}  Rd2 {[%clk 0:00:02]} 82. Rc7+ {[%clk 0:00:05]}  Kb6 {[%clk 0:00:02]} 83. Ke6 {[%clk 0:00:05]}  Re2 {[%clk 0:00:03]} 84. Rc1 {[%clk 0:00:06]}  Kb5 {[%clk 0:00:03]} 85. Kd5 {[%clk 0:00:07]}  Ka6 {[%clk 0:00:03]} 86. Kc6 {[%clk 0:00:06]}  Ra2 {[%clk 0:00:03]} 87. Bd4 {[%clk 0:00:06]}  Ra4 {[%clk 0:00:04]} 88. Bc5 {[%clk 0:00:06]}  Ra2 {[%clk 0:00:04]} 89. Rd1 {[%clk 0:00:06]}  Ka5 {[%clk 0:00:04]} 90. Rd4 {[%clk 0:00:05]}  Rb2 {[%clk 0:00:03]} 91. Re4 {[%clk 0:00:04]}  Rb3 {[%clk 0:00:03]} 92. Rf4 {[%clk 0:00:04]}  Rb1 {[%clk 0:00:03]} 93. Bd6 {[%clk 0:00:04]}  Rc1+ {[%clk 0:00:03]} 94. Bc5 {[%clk 0:00:05]}  Rb1 {[%clk 0:00:04]} 95. Rh4 {[%clk 0:00:05]}  Rb2 {[%clk 0:00:04]} 96. Rg4 {[%clk 0:00:06]}  Rb1 {[%clk 0:00:04]} 97. Be3 {[%clk 0:00:06]}  Rb3 {[%clk 0:00:03]} 98. Rc4 {[%clk 0:00:07]}  Rxe3 {[%clk 0:00:03]} 99. Rc5+ {[%clk 0:00:07]}  Ka4 {[%clk 0:00:03]} 100. Rd5 {[%clk 0:00:08]}  Kb3 {[%clk 0:00:04]} 101. Kd6 {[%clk 0:00:08]}  Rc3 {[%clk 0:00:05]} 102. Re5 {[%clk 0:00:09]}  Kc2 {[%clk 0:00:05]} 103. Kd5 {[%clk 0:00:09]}  Rd3+ {[%clk 0:00:06]} 104. Ke6 {[%clk 0:00:09]}  Rc3 {[%clk 0:00:07]} 105. Rd5 {[%clk 0:00:10]}  Kb3 {[%clk 0:00:08]} 106. Kd6 {[%clk 0:00:11]}  Rc4 {[%clk 0:00:08]} 107. Re5 {[%clk 0:00:11]}  Kb4 {[%clk 0:00:09]} 108. Rd5 {[%clk 0:00:12]}  Rc3 {[%clk 0:00:09]} 109. Ke5 {[%clk 0:00:12]}  Kb3 {[%clk 0:00:09]} 110. Rd4 {[%clk 0:00:13]}  Re3+ {[%clk 0:00:09]} 111. Kf4 {[%clk 0:00:13]}  Rc3 {[%clk 0:00:09]} 112. Ke4 {[%clk 0:00:14]}  Rc4 {[%clk 0:00:10]} 113. Rxc4 {[%clk 0:00:14]}  Kxc4 {[%clk 0:00:11]} 1/2-1/2


[Site "https://www.chess.com"]